bitfinex-derivatives/quotes_BTCF0:USTF0_20250318
["timestamp","ask_amount","ask_price","bid_price","bid_amount"]
[1742259391244,0.0309,83782.0,83777.0,1.741614]
[1742259391649,0.0314,83781.0,83777.0,1.741614]
[1742259392652,0.0309,83782.0,83777.0,1.511614]
[1742259392853,0.0309,83782.0,83777.0,1.771614]
[1742259393062,0.0316,83781.0,83777.0,1.511614]
[1742259393948,0.0325,83780.0,83777.0,1.511614]
[1742259394360,0.0316,83779.0,83777.0,1.511614]
[1742259395057,0.03267905,83778.0,83777.0,1.511614]
[1742259395259,0.03267905,83778.0,83777.0,1.872414]
[1742259395563,0.00017905,83778.0,83777.0,1.872414]
[1742259395760,0.03327905,83778.0,83777.0,1.872414]
[1742259396564,0.03327905,83778.0,83777.0,1.903714]
[1742259399161,0.03327905,83778.0,83777.0,1.691774]
[1742259399352,0.15265165,83778.0,83777.0,1.807094]
[1742259399660,0.03327905,83778.0,83777.0,1.807094]
[1742259399855,0.03327905,83778.0,83777.0,1.870154]
[1742259400851,0.03327905,83778.0,83777.0,2.120154]
[1742259401057,0.03327905,83778.0,83777.0,1.870154]
[1742259401450,0.03327905,83778.0,83777.0,2.140154]
[1742259401857,0.03327905,83778.0,83777.0,1.870154]
[1742259402250,0.03327905,83778.0,83777.0,2.140154]
[1742259402465,0.03327905,83778.0,83777.0,1.870154]
[1742259403053,0.00017905,83778.0,83777.0,1.870154]
[1742259403254,0.00017905,83778.0,83777.0,2.230954]
[1742259403455,0.03077905,83778.0,83777.0,2.500954]
[1742259403964,0.03077905,83778.0,83777.0,2.230954]
[1742259404166,0.03077905,83778.0,83777.0,2.500954]
[1742259405469,0.03077905,83778.0,83777.0,2.230954]
[1742259405660,0.03077905,83778.0,83777.0,2.460954]
[1742259406070,0.03077905,83778.0,83777.0,2.480954]
[1742259406965,0.03077905,83778.0,83777.0,2.470954]
[1742259407552,0.03077905,83778.0,83777.0,2.510954]
[1742259408472,0.00017905,83778.0,83777.0,2.460954]
[1742259408768,0.00017905,83778.0,83777.0,2.510954]
[1742259408953,0.03287905,83778.0,83777.0,2.510954]
[1742259409864,0.03287905,83778.0,83777.0,2.230954]
[1742259410170,0.00017905,83778.0,83777.0,2.490954]
[1742259410357,0.0642,83789.0,83788.0,0.1193583]
[1742259410558,0.0642,83789.0,83788.0,1.6754383]
[1742259410858,0.0642,83789.0,83788.0,1.6954383]
[1742259411066,0.0642,83789.0,83788.0,1.4154383]
[1742259411266,0.0642,83789.0,83788.0,1.6554383]
[1742259411584,0.0642,83789.0,83788.0,1.4779383]
[1742259411767,0.0642,83789.0,83788.0,1.7479383]
[1742259412161,0.0642,83789.0,83788.0,1.7379383]
[1742259412569,0.0642,83789.0,83788.0,1.4779383]
[1742259413163,0.0642,83789.0,83788.0,1.4154383]
[1742259414170,0.0642,83789.0,83788.0,1.4485383]
[1742259414370,0.0642,83789.0,83788.0,1.4794383]
[1742259415073,0.0642,83789.0,83788.0,1.7194383]
[1742259415775,0.0642,83789.0,83788.0,1.7294383]
[1742259416274,0.0642,83789.0,83788.0,1.7494383]
[1742259416574,0.0642,83789.0,83788.0,1.4794383]
[1742259416973,0.0642,83789.0,83788.0,1.7594383]
[1742259418465,0.0642,83789.0,83788.0,1.7194383]
[1742259418663,0.0642,83789.0,83788.0,1.7094383]
[1742259419264,0.0642,83789.0,83788.0,1.7494383]
[1742259420373,0.0642,83789.0,83788.0,2.1610383]
[1742259420678,0.0642,83789.0,83788.0,1.8910383]
[1742259420874,0.0642,83789.0,83788.0,2.1610383]
[1742259421373,0.0642,83789.0,83788.0,2.1510383]
[1742259423484,0.00017905,83797.0,83796.0,0.1193469]
[1742259423776,0.00017905,83797.0,83796.0,1.3552269]
[1742259423966,0.00017905,83797.0,83796.0,2.0068269]
[1742259424769,0.00017905,83797.0,83796.0,2.0378269]
[1742259425880,0.00017905,83797.0,83796.0,2.04979614]
[1742259426584,0.03027905,83797.0,83796.0,2.04979614]
[1742259430185,0.03027905,83797.0,83796.0,2.08219614]
[1742259433492,0.178094,83814.0,83803.0,0.0596678]
[1742259433672,0.0313,83813.0,83812.0,0.1193242]
[1742259433878,0.0313,83813.0,83812.0,1.3142442]
[1742259434384,0.0313,83813.0,83812.0,1.0442442]
[1742259435090,0.0313,83813.0,83812.0,1.05627968]
[1742259435390,0.0313,83813.0,83812.0,1.0653384]
[1742259435980,0.0313,83813.0,83812.0,1.3253384]
[1742259436181,0.0313,83813.0,83812.0,1.0653384]
[1742259436383,0.0313,83813.0,83812.0,1.2953384]
[1742259436580,0.0313,83813.0,83812.0,1.3053384]
[1742259436788,0.0947,83813.0,83812.0,1.0653384]
[1742259438288,0.0947,83813.0,83812.0,1.3153384]
[1742259438683,0.0947,83813.0,83812.0,1.0653384]
[1742259438882,0.0634,83813.0,83812.0,1.3153384]
[1742259439081,0.0634,83813.0,83812.0,1.1153384]
[1742259439283,0.0634,83813.0,83812.0,1.3553384]
[1742259439478,0.0634,83813.0,83812.0,1.3753384]
[1742259439694,0.0634,83813.0,83812.0,1.1153384]
[1742259440093,0.0634,83813.0,83812.0,1.3553384]
[1742259440688,0.0634,83813.0,83812.0,1.3453384]
[1742259440887,0.0634,83813.0,83812.0,1.1153384]
[1742259446193,0.0634,83813.0,83812.0,1.1151384]
[1742259446788,0.0634,83813.0,83812.0,1.1471384]
[1742259446986,0.0634,83813.0,83812.0,1.3771384]
[1742259447183,0.0634,83813.0,83812.0,1.1471384]
[1742259448492,0.0634,83813.0,83812.0,1.1771384]
[1742259453301,0.0634,83813.0,83812.0,1.0624184]
[1742259453492,0.0634,83813.0,83812.0,1.1771384]
[1742259454696,0.0634,83813.0,83812.0,1.4071384]
[1742259454897,0.0634,83813.0,83812.0,1.1771384]
[1742259455285,0.0634,83813.0,83812.0,1.4071384]
[1742259455491,0.0634,83813.0,83812.0,1.4171384]
[1742259455692,0.0634,83813.0,83812.0,1.1771384]
[1742259458202,0.0634,83813.0,83812.0,1.4571384]
[1742259458794,0.0634,83813.0,83812.0,1.1771384]
[1742259459007,0.0634,83813.0,83812.0,1.4271384]
[1742259459506,0.0634,83813.0,83812.0,1.4071384]
[1742259459707,0.0634,83813.0,83812.0,1.1771384]
[1742259460099,0.0634,83813.0,83812.0,1.5379384]
[1742259462397,0.0634,83813.0,83812.0,1.5680384]
[1742259462594,0.0315,83820.0,83819.0,0.1193142]
[1742259462809,0.0618,83820.0,83819.0,1.0240342]
[1742259462993,0.0618,83820.0,83819.0,1.0547342]
[1742259463800,0.0937,83820.0,83819.0,1.0875342]
[1742259464003,0.0622,83820.0,83819.0,1.4483342]
[1742259464203,0.00017905,83821.0,83820.0,0.1193128]
[1742259464403,0.00017905,83821.0,83820.0,1.2428128]
[1742259465509,0.00017905,83821.0,83820.0,1.2528128]
[1742259466209,0.00017905,83821.0,83820.0,1.2628128]
[1742259466411,0.00017905,83821.0,83820.0,1.0028128]
[1742259466612,0.00017905,83821.0,83820.0,1.2828128]
[1742259466910,0.00017905,83821.0,83820.0,1.2328128]
[1742259467508,0.00017905,83821.0,83820.0,1.2428128]
[1742259467996,0.00017905,83821.0,83820.0,1.2728128]
[1742259469110,0.00017905,83821.0,83820.0,1.2328128]
[1742259469405,0.00017905,83821.0,83820.0,1.2828128]
[1742259469606,0.00017905,83821.0,83820.0,1.2528128]
[1742259470008,0.00017905,83821.0,83820.0,1.0028128]
[1742259470404,0.00017905,83821.0,83820.0,1.2828128]
[1742259470605,0.00017905,83821.0,83820.0,1.0028128]
[1742259470800,0.00017905,83821.0,83820.0,1.6944128]
[1742259471409,0.033,83834.0,83833.0,0.1192943]
[1742259471607,0.033,83834.0,83833.0,1.4047743]
[1742259472207,0.0639,83834.0,83833.0,1.4695743]
[1742259472413,0.1831928,83834.0,83833.0,1.3947743]
[1742259472615,0.0639,83834.0,83833.0,1.3947743]
[1742259472910,0.1831928,83834.0,83833.0,1.4047743]
[1742259473312,0.0639,83834.0,83833.0,1.4047743]
[1742259473712,0.0639,83834.0,83833.0,1.4372743]
[1742259474516,0.0944,83834.0,83833.0,1.4372743]
[1742259474707,0.0944,83834.0,83833.0,1.4705743]
[1742259475116,0.0944,83834.0,83833.0,1.4505743]
[1742259475804,0.0944,83834.0,83833.0,1.4405743]
[1742259476412,0.0635,83834.0,83833.0,1.4405743]
[1742259479126,0.00017894,83842.0,83841.0,0.1192829]
[1742259479319,0.00017894,83842.0,83841.0,1.3547629]
[1742259479910,0.00017894,83842.0,83841.0,1.36678599]
[1742259480311,0.00017894,83842.0,83841.0,1.3547629]
[1742259480510,0.00017894,83842.0,83841.0,1.3871629]
[1742259480711,0.11946044,83842.0,83841.0,1.3547629]
[1742259480911,0.11946044,83842.0,83841.0,1.24548]
[1742259481115,0.11946044,83842.0,83841.0,1.0847629]
[1742259481325,0.11946044,83842.0,83841.0,0.72548]
[1742259481519,0.11946044,83842.0,83841.0,0.8447629]
[1742259481819,0.11946044,83842.0,83841.0,1.1247629]
[1742259482822,0.11946044,83842.0,83841.0,1.1047629]
[1742259483422,0.11946044,83842.0,83841.0,1.1247629]
[1742259483622,0.11946044,83842.0,83841.0,1.0947629]
[1742259484427,0.11946044,83842.0,83841.0,0.8447629]
[1742259484623,0.11946044,83842.0,83841.0,1.1147629]
[1742259484821,0.11946044,83842.0,83841.0,1.0847629]
[1742259485015,0.11946044,83842.0,83841.0,0.7639629]
[1742259485616,0.11946044,83842.0,83841.0,0.7339629]
[1742259486726,0.11946044,83842.0,83841.0,0.7639629]
[1742259487218,0.11946044,83842.0,83841.0,0.4839629]
[1742259487418,0.11946044,83842.0,83841.0,0.7439629]
[1742259487814,0.11946044,83842.0,83841.0,0.4839629]
[1742259488025,0.11946044,83842.0,83841.0,0.7239629]
[1742259489426,0.11946044,83842.0,83841.0,0.9739629]
[1742259489726,0.11946044,83842.0,83841.0,0.59468]
[1742259489919,0.11946044,83842.0,83841.0,0.7139629]
[1742259491019,0.11946044,83842.0,83841.0,0.3692829]
[1742259491520,0.11946044,83842.0,83841.0,0.6592829]
[1742259491727,0.11946044,83842.0,83841.0,0.3692829]
[1742259495228,0.11946044,83842.0,83841.0,0.25]
[1742259495818,0.15206044,83842.0,83841.0,0.25]
[1742259496227,0.15206044,83842.0,83841.0,0.3692829]
[1742259496528,0.18306044,83842.0,83841.0,0.3692829]
[1742259496727,0.18306044,83842.0,83841.0,0.6321829]
[1742259496930,0.18306044,83842.0,83841.0,0.7129829]
[1742259497128,0.18306044,83842.0,83841.0,0.4329829]
[1742259497527,0.18306044,83842.0,83841.0,0.7129829]
[1742259497728,0.18306044,83842.0,83841.0,0.4329829]
[1742259498836,0.18306044,83842.0,83841.0,0.7029829]
[1742259499133,0.18306044,83842.0,83841.0,0.4329829]
[1742259499432,0.18306044,83842.0,83841.0,0.6829829]
[1742259499622,0.18306044,83842.0,83841.0,0.4329829]
[1742259500131,0.18306044,83842.0,83841.0,0.6829829]
[1742259500331,0.18306044,83842.0,83841.0,0.4329829]
[1742259502535,0.18306044,83842.0,83841.0,0.6629829]
[1742259502737,0.18306044,83842.0,83841.0,0.4329829]
[1742259503736,0.18306044,83842.0,83841.0,0.7029829]
[1742259504031,0.18306044,83842.0,83841.0,0.4329829]
[1742259504238,0.18306044,83842.0,83841.0,0.6629829]
[1742259504431,0.18306044,83842.0,83841.0,0.6829829]
[1742259504637,0.18306044,83842.0,83841.0,0.4329829]
[1742259505731,0.21476044,83842.0,83841.0,0.4329829]
[1742259506240,0.21476044,83842.0,83841.0,0.6829829]
[1742259506536,0.21476044,83842.0,83841.0,0.4329829]
[1742259508530,0.21476044,83842.0,83841.0,0.6829829]
[1742259508831,0.21476044,83842.0,83841.0,0.4329829]
[1742259509639,0.21476044,83842.0,83841.0,0.6929829]
[1742259509836,0.21476044,83842.0,83841.0,0.4329829]
[1742259511741,0.21476044,83842.0,83841.0,0.3137]
[1742259512037,0.1193042,83826.0,83822.0,0.1193092]
[1742259512242,0.4801042,83826.0,83825.0,0.38948454]
[1742259512541,0.4801042,83826.0,83825.0,0.36948454]
[1742259512936,0.5103042,83826.0,83825.0,0.36948454]
[1742259513440,0.5412042,83826.0,83825.0,0.36948454]
[1742259513843,0.5412042,83826.0,83825.0,0.39978454]
[1742259514051,0.55315543,83826.0,83825.0,0.39978454]
[1742259514343,0.19235543,83826.0,83825.0,0.66978454]
[1742259514936,0.13125543,83826.0,83825.0,0.66978454]
[1742259515140,0.13125543,83826.0,83825.0,0.89978454]
[1742259515340,0.13125543,83826.0,83825.0,0.66978454]
[1742259515541,0.13125543,83826.0,83825.0,0.91978454]
[1742259515734,0.13125543,83826.0,83825.0,0.63978454]
[1742259515934,0.13125543,83826.0,83825.0,0.39978454]
[1742259516134,0.13125543,83826.0,83825.0,0.63978454]
[1742259517145,0.13125543,83826.0,83825.0,0.66978454]
[1742259517540,0.19495543,83826.0,83825.0,0.39978454]
[1742259517741,0.19495543,83826.0,83825.0,0.62978454]
[1742259518046,0.13125543,83826.0,83825.0,0.62978454]
[1742259518549,0.13125543,83826.0,83825.0,0.67978454]
[1742259518840,0.13125543,83826.0,83825.0,0.66978454]
[1742259519141,0.13125543,83826.0,83825.0,0.39978454]
[1742259519341,0.13125543,83826.0,83825.0,0.62978454]
[1742259519542,0.19495543,83826.0,83825.0,0.62978454]
[1742259520847,0.19495543,83826.0,83825.0,0.39978454]
[1742259521041,0.19495543,83826.0,83825.0,0.63978454]
[1742259522448,0.19495543,83826.0,83825.0,0.64978454]
[1742259522651,0.19495543,83826.0,83825.0,0.65978454]
[1742259523043,0.19495543,83826.0,83825.0,0.66978454]
[1742259523237,0.19495543,83826.0,83825.0,0.39978454]
[1742259523444,0.19495543,83826.0,83825.0,0.89978454]
[1742259523646,0.19495543,83826.0,83825.0,0.66978454]
[1742259524749,0.19495543,83826.0,83825.0,0.65978454]
[1742259525050,0.19495543,83826.0,83825.0,0.39978454]
[1742259525253,0.19495543,83826.0,83825.0,0.64978454]
[1742259527450,0.19495543,83826.0,83825.0,0.71208454]
[1742259527952,0.19495543,83826.0,83825.0,0.67208454]
[1742259528149,0.19495543,83826.0,83825.0,0.43208454]
[1742259528543,0.19495543,83826.0,83825.0,0.69208454]
[1742259530150,0.19495543,83826.0,83825.0,0.70208454]
[1742259530346,0.19495543,83826.0,83825.0,0.43208454]
[1742259530545,0.19495543,83826.0,83825.0,0.67208454]
[1742259530852,0.19495543,83826.0,83825.0,0.43208454]
[1742259531053,0.19495543,83826.0,83825.0,0.68208454]
[1742259531848,0.19495543,83826.0,83825.0,0.69208454]
[1742259532248,0.19495543,83826.0,83825.0,0.67208454]
[1742259533258,0.19495543,83826.0,83825.0,0.06277894]
[1742259533259,0.55575543,83826.0,83825.0,0.06277894]
[1742259533551,0.55575543,83826.0,83820.0,0.0596561]
[1742259533552,0.1789791,83817.0,83816.0,0.0596586]
[1742259533948,0.1789791,83817.0,83816.0,0.2996586]
[1742259534357,0.1789791,83817.0,83816.0,0.0596586]
[1742259534549,0.1193185,83816.0,83815.0,0.032]
[1742259534750,0.1516185,83816.0,83815.0,0.032]
[1742259534950,0.1822185,83816.0,83815.0,0.4321189]
[1742259535660,0.1822185,83816.0,83815.0,0.1821189]
[1742259535853,0.1822185,83816.0,83815.0,0.4621189]
[1742259536058,0.1822185,83816.0,83815.0,0.0628]
[1742259542159,0.1822185,83816.0,83815.0,0.1821199]
[1742259543562,0.1822185,83816.0,83815.0,0.0628]
[1742259545673,0.1193284,83809.0,83808.0,0.00017894]
[1742259545855,0.4801284,83809.0,83808.0,0.28017894]
[1742259546260,0.4801284,83809.0,83808.0,0.31107894]
[1742259557067,0.5419284,83809.0,83808.0,0.31107894]
[1742259557665,0.5419284,83809.0,83808.0,0.34197894]
[1742259567362,0.5419284,83809.0,83808.0,0.46130874]
[1742259567568,0.5419284,83809.0,83808.0,0.34197894]
[1742259569567,0.5419284,83809.0,83808.0,0.60197894]
[1742259569775,0.5419284,83809.0,83808.0,0.46130874]
[1742259569970,0.5419284,83809.0,83808.0,0.70130874]
[1742259570566,0.5419284,83809.0,83808.0,0.61197894]
[1742259570767,0.5419284,83809.0,83808.0,0.59197894]
[1742259571066,0.5419284,83809.0,83808.0,0.34197894]
[1742259571361,0.5419284,83809.0,83808.0,0.69130874]
[1742259571965,0.5419284,83809.0,83808.0,0.72130874]
[1742259572175,0.5419284,83809.0,83808.0,0.46130874]
[1742259572373,0.5419284,83809.0,83808.0,0.72130874]
[1742259573178,0.5419284,83809.0,83808.0,0.71130874]
[1742259573477,0.5419284,83809.0,83808.0,0.74130874]
[1742259574178,0.3608,83809.0,83808.0,0.74130874]
[1742259574375,0.0596585,83817.0,83816.0,0.119317]
[1742259574683,0.00017894,83825.0,83817.0,0.119317]
[1742259574869,0.1193119,83821.0,83817.0,0.849317]
[1742259575069,0.0596558,83821.0,83817.0,0.849317]
[1742259575264,0.1193122,83821.0,83817.0,0.849317]
[1742259575474,0.119313,83820.0,83817.0,0.829317]
[1742259575670,0.1193149,83819.0,83817.0,0.829317]
[1742259575872,0.0596565,83820.0,83817.0,0.829317]
[1742259576071,0.1193151,83819.0,83817.0,0.829317]
[1742259576272,0.1193105,83822.0,83817.0,0.599317]
[1742259576580,0.1193105,83822.0,83817.0,0.839317]
[1742259576775,0.1193127,83821.0,83817.0,0.839317]
[1742259576980,0.0596556,83821.0,83817.0,0.839317]
[1742259577182,0.1193111,83822.0,83821.0,0.1193113]
[1742259577374,0.00017894,83825.0,83824.0,0.1193071]
[1742259577578,0.3608,83829.0,83828.0,0.1193014]
[1742259577779,0.3608,83829.0,83828.0,0.8893014]
[1742259578278,0.00068,83839.0,83838.0,0.1192871]
[1742259578480,0.1192796,83844.0,83843.0,0.1192786]
[1742259578669,0.1192796,83844.0,83843.0,0.3592786]
[1742259578873,0.1192772,83845.0,83844.0,0.1789172]
[1742259579172,0.1192772,83845.0,83844.0,0.4289172]
[1742259579676,0.1192772,83845.0,83844.0,0.25]
[1742259580382,0.1835772,83845.0,83844.0,0.25]
[1742259580778,0.1192786,83844.0,83843.0,0.11468]
[1742259581083,0.1789278,83841.0,83840.0,0.1192843]
[1742259581283,0.5397278,83841.0,83840.0,0.1992843]
[1742259581584,0.5397278,83841.0,83840.0,0.08]
[1742259582277,0.6016278,83841.0,83840.0,0.08]
[1742259582476,0.6016278,83841.0,83840.0,0.1992843]
[1742259584676,0.6016278,83841.0,83840.0,0.1192843]
[1742259584872,0.1192843,83840.0,83839.0,4e-05]
[1742259585278,0.1830843,83840.0,83839.0,4e-05]
[1742259586584,0.1192886,83837.0,83836.0,0.1192886]
[1742259587282,0.11929,83836.0,83835.0,0.1523914]
[1742259587881,0.11929,83836.0,83835.0,0.0646]
[1742259588083,0.11929,83836.0,83835.0,0.0315]
[1742259588287,0.15089,83836.0,83835.0,0.0315]
[1742259589184,0.15089,83836.0,83835.0,0.0643]
[1742259589785,0.1192914,83835.0,83834.0,4e-05]
[1742259589983,0.1517914,83835.0,83834.0,4e-05]
[1742259590987,0.1192943,83833.0,83832.0,0.0328]
[1742259591887,0.4800943,83833.0,83832.0,0.0328]
[1742259592491,0.1192957,83832.0,83831.0,0.03154]
[1742259592791,0.2132957,83832.0,83831.0,0.03154]
[1742259592996,0.2132957,83832.0,83831.0,0.06394]
[1742259593591,0.2132957,83832.0,83831.0,0.0639]
[1742259596281,0.3279357,83832.0,83831.0,0.0639]
[1742259597495,0.2970357,83832.0,83831.0,0.0639]
[1742259597793,0.2970357,83832.0,83831.0,0.1831971]
[1742259600200,0.1823957,83832.0,83831.0,0.1831971]
[1742259600698,0.1192957,83832.0,83831.0,0.1831971]
[1742259601799,0.1192957,83832.0,83831.0,0.4431971]
[1742259602197,0.0596439,83838.0,83835.0,0.0596453]
[1742259602504,0.4800871,83839.0,83838.0,0.1192871]
[1742259602705,0.4800871,83839.0,83838.0,0.5892871]
[1742259602901,0.4800871,83839.0,83838.0,0.4435871]
[1742259604901,0.1192871,83839.0,83838.0,0.4435871]
[1742259607508,0.1192871,83839.0,83838.0,0.6935871]
[1742259607702,0.1192871,83839.0,83838.0,0.7135871]
[1742259608302,0.1192871,83839.0,83838.0,0.4435871]
[1742259608502,0.1192871,83839.0,83838.0,0.7135871]
[1742259608704,0.1192871,83839.0,83838.0,0.4435871]
[1742259608903,0.1192871,83839.0,83838.0,0.7235871]
[1742259609111,0.1192871,83839.0,83838.0,0.4435871]
[1742259612113,0.1192871,83839.0,83838.0,0.5582271]
[1742259612304,0.1192871,83839.0,83838.0,0.3243]
[1742259612504,0.1841871,83839.0,83838.0,0.4435871]
[1742259613408,0.1841871,83839.0,83838.0,0.0621]
[1742259613612,0.2149871,83839.0,83838.0,0.0621]
[1742259614315,0.2149871,83839.0,83838.0,0.1813871]
[1742259615011,0.1841871,83839.0,83838.0,0.1813871]
[1742259616817,0.1841871,83839.0,83838.0,0.0621]
[1742259617119,0.1841871,83839.0,83838.0,0.1813871]
[1742259622019,0.1841871,83839.0,83838.0,0.0621]
[1742259622609,0.1192871,83838.0,83837.0,4e-05]
[1742259623017,0.1828871,83838.0,83837.0,4e-05]
[1742259623821,0.1192914,83835.0,83834.0,0.0329]
[1742259624022,0.4800914,83835.0,83834.0,0.0329]
[1742259624509,0.4800914,83835.0,83834.0,0.1521928]
[1742259624817,0.5122914,83835.0,83834.0,0.1521928]
[1742259626924,0.5425914,83835.0,83834.0,0.1521928]
[1742259627324,0.5425914,83835.0,83834.0,0.0329]
[1742259629121,0.5425914,83835.0,83834.0,0.1521928]
[1742259629622,0.5740914,83835.0,83834.0,0.1521928]
[1742259630421,0.5437914,83835.0,83834.0,0.2024928]
[1742259630727,0.3608,83835.0,83834.0,0.4424928]
[1742259630927,0.4800914,83835.0,83834.0,0.2024928]
[1742259631118,0.4800914,83835.0,83834.0,0.4724928]
[1742259631318,0.3608,83835.0,83834.0,0.7124928]
[1742259631517,0.3608,83835.0,83834.0,0.4624928]
[1742259632124,0.4800914,83835.0,83834.0,0.4624928]
[1742259632423,0.1192914,83835.0,83834.0,0.4624928]
[1742259632724,0.01182604,83846.0,83845.0,0.1192772]
[1742259632926,0.1192758,83846.0,83845.0,0.7385544]
[1742259633120,0.1192758,83846.0,83845.0,0.7885544]
[1742259633823,0.00017894,83847.0,83846.0,0.1192758]
[1742259634023,0.00017894,83847.0,83846.0,0.8992758]
[1742259634231,0.00017894,83847.0,83846.0,0.6792758]
[1742259634529,0.00017894,83847.0,83846.0,0.9192758]
[1742259634921,0.00017894,83847.0,83846.0,0.9492758]
[1742259635122,0.11945324,83847.0,83846.0,0.9492758]
[1742259635329,0.11945324,83847.0,83846.0,0.6792758]
[1742259635627,0.11945324,83847.0,83846.0,0.6592758]
[1742259636124,0.11945324,83847.0,83846.0,0.3992758]
[1742259636923,0.11945324,83847.0,83846.0,0.9292758]
[1742259637624,0.11945324,83847.0,83846.0,0.9492758]
[1742259637825,0.11945324,83847.0,83846.0,0.3992758]
[1742259638026,0.11945324,83847.0,83846.0,0.9292758]
[1742259638322,0.11945324,83847.0,83846.0,0.6592758]
[1742259638629,0.11945324,83847.0,83846.0,0.9392758]
[1742259638826,0.11945324,83847.0,83846.0,0.9314758]
[1742259639028,0.11945324,83847.0,83846.0,0.6914758]
[1742259639223,0.11945324,83847.0,83846.0,0.9414758]
[1742259639525,0.11945324,83847.0,83846.0,0.6914758]
[1742259639727,0.11945324,83847.0,83846.0,0.9614758]
[1742259639922,0.00017894,83847.0,83846.0,0.6914758]
[1742259640130,0.00017894,83847.0,83846.0,0.9614758]
[1742259640429,0.00017894,83847.0,83846.0,0.6914758]
[1742259640624,0.00017894,83847.0,83846.0,0.9514758]
[1742259641131,0.00017894,83847.0,83846.0,0.9614758]
[1742259641327,0.00017894,83847.0,83846.0,0.6914758]
[1742259641828,0.00017894,83847.0,83846.0,0.9514758]
[1742259642333,0.00017894,83847.0,83846.0,0.9414758]
[1742259642524,0.00017894,83847.0,83846.0,0.9614758]
[1742259643329,0.00017894,83847.0,83846.0,0.9714758]
[1742259643632,0.00017894,83847.0,83846.0,0.6914758]
[1742259643832,0.00017894,83847.0,83846.0,0.9414758]
[1742259644229,0.00017894,83847.0,83846.0,0.9514758]
[1742259644533,0.00017894,83847.0,83846.0,0.9714758]
[1742259644727,0.00017894,83847.0,83846.0,0.6914758]
[1742259644927,0.00017894,83847.0,83846.0,0.9414758]
[1742259645230,0.00017894,83847.0,83846.0,0.6914758]
[1742259645536,0.00017894,83847.0,83846.0,0.9614758]
[1742259646921,0.00017894,83847.0,83846.0,1.0762358]
[1742259647535,0.00017894,83847.0,83846.0,1.0662358]
[1742259648327,0.00017894,83847.0,83846.0,0.8062358]
[1742259648527,0.00017894,83847.0,83846.0,1.0462358]
[1742259648726,0.00017894,83847.0,83846.0,1.0562358]
[1742259650229,0.00017894,83847.0,83846.0,1.0662358]
[1742259652932,0.032,83863.0,83862.0,0.119253]
[1742259653233,0.032,83863.0,83862.0,1.013853]
[1742259653423,0.032,83863.0,83862.0,0.783853]
[1742259653627,0.032,83863.0,83862.0,1.116253]
[1742259653938,0.032,83863.0,83862.0,0.586253]
[1742259654127,0.032,83863.0,83862.0,0.836253]
[1742259654334,0.032,83863.0,83862.0,1.126253]
[1742259654529,0.032,83863.0,83862.0,0.586253]
[1742259654726,0.032,83863.0,83862.0,1.076253]
[1742259654930,0.0302,83865.0,83864.0,0.1192502]
[1742259655130,0.0302,83865.0,83864.0,0.3892502]
[1742259655457,0.00017894,83871.0,83870.0,0.1192416]
[1742259655635,0.00017894,83871.0,83870.0,0.7238416]
[1742259656039,0.00017894,83871.0,83870.0,0.7553416]
[1742259656840,0.00017894,83871.0,83870.0,0.8180416]
[1742259657141,0.00017894,83871.0,83870.0,1.11023298]
[1742259657835,0.00017894,83871.0,83870.0,1.10023298]
[1742259658228,0.00017894,83871.0,83870.0,1.87263298]
[1742259660539,4e-08,83871.0,83870.0,2.15263298]
[1742259660735,4e-08,83871.0,83870.0,2.30263298]
[1742259660940,0.0316,83887.0,83886.0,0.1192189]
[1742259661134,0.0316,83887.0,83886.0,0.7638189]
[1742259661441,0.0316,83887.0,83886.0,1.0238189]
[1742259661637,0.0316,83887.0,83886.0,1.0138189]
[1742259662144,0.0644,83887.0,83886.0,0.5562189]
[1742259662444,0.0644,83887.0,83886.0,1.09821969]
[1742259662639,0.0644,83887.0,83886.0,1.08821969]
[1742259662831,0.1836175,83887.0,83886.0,0.50581969]
[1742259663037,0.1836175,83887.0,83886.0,0.4938189]
[1742259663243,0.1836175,83887.0,83886.0,0.3746]
[1742259663441,0.1192189,83886.0,83885.0,4e-05]
[1742259663632,0.1192217,83884.0,83883.0,0.1146]
[1742259663838,0.4800217,83884.0,83883.0,0.2438232]
[1742259664140,0.4800217,83884.0,83883.0,0.1246]
[1742259664341,0.5427217,83884.0,83883.0,0.1246]
[1742259664931,0.5427217,83884.0,83883.0,0.01]
[1742259665138,0.1192232,83883.0,83882.0,0.1192643]
[1742259665538,0.1819232,83883.0,83882.0,0.1192643]
[1742259666445,0.1819232,83883.0,83882.0,0.1192243]
[1742259668446,0.1192246,83882.0,83881.0,4e-05]
[1742259668751,0.1825246,83882.0,83881.0,4e-05]
[1742259669439,0.119226,83881.0,83880.0,0.1146]
[1742259669639,0.119226,83881.0,83880.0,0.11464]
[1742259669849,0.119226,83881.0,83880.0,0.2338674]
[1742259669850,0.182526,83881.0,83880.0,0.2338674]
[1742259670347,0.0633,83881.0,83880.0,0.4956674]
[1742259670543,0.0633,83881.0,83880.0,0.5258274]
[1742259671443,0.182526,83881.0,83880.0,0.5258274]
[1742259672448,0.0633,83881.0,83880.0,0.5258274]
[1742259672948,0.182526,83881.0,83880.0,0.23]
[1742259673143,0.543326,83881.0,83880.0,0.3492274]
[1742259678248,0.0633,83881.0,83880.0,0.6440274]
[1742259678449,0.0633,83881.0,83880.0,0.8185874]
[1742259678643,0.0633,83881.0,83880.0,0.5285874]
[1742259678841,0.0633,83881.0,83880.0,0.8085874]
[1742259679044,0.4800128,83891.0,83889.0,0.1192132]
[1742259679243,0.3936,83891.0,83890.0,0.1827132]
[1742259679439,0.3608,83891.0,83890.0,0.6927132]
[1742259679642,0.150008,83894.0,83893.0,0.1192089]
[1742259679840,0.0308,83894.0,83893.0,0.3592089]
[1742259680041,0.1500075,83894.0,83893.0,0.3792089]
[1742259680236,0.1500075,83894.0,83893.0,0.1192089]
[1742259680441,0.2134075,83894.0,83893.0,0.1192089]
[1742259680949,0.2134075,83894.0,83893.0,0.1827089]
[1742259682358,0.2134075,83894.0,83893.0,0.4327089]
[1742259682546,0.2134075,83894.0,83893.0,0.1827089]
[1742259682741,0.2134075,83894.0,83893.0,0.4327089]
[1742259683150,0.18273214,83894.0,83893.0,0.7327089]
[1742259683549,0.03072464,83894.0,83893.0,0.4627089]
[1742259683749,0.00012464,83894.0,83893.0,0.4627089]
[1742259683945,0.00012464,83894.0,83893.0,0.7327089]
[1742259684150,0.00012464,83894.0,83893.0,0.9627089]
[1742259684546,0.00012464,83894.0,83893.0,1.0127089]
[1742259685143,0.00012464,83894.0,83893.0,0.7327089]
[1742259685349,0.00012464,83894.0,83893.0,0.9827089]
[1742259685550,0.00012464,83894.0,83893.0,1.0127089]
[1742259686457,0.00012464,83894.0,83893.0,1.0227089]
[1742259690361,0.00012464,83894.0,83893.0,1.4343089]